fUSD/lending_fUSD_20260519
["ID","MTS","AMOUNT","RATE_DAILY","PERIOD"]
[422602308,1779142239000,-150.0,0.00013874,2]
[422602255,1779142239000,-624.96,0.00013698,2]
[422602300,1779142239000,-150.0,0.00013834,2]
[422602343,1779142239000,-500.0,0.0001402,2]
[422602342,1779142239000,-672.34372571,0.00014014,21]
[422602339,1779142239000,-150.0,0.00014004,2]
[422602345,1779142239000,-150.0,0.00014033,2]
[422602349,1779142239000,-150.0,0.00014059,2]
[422602340,1779142239000,-150.0,0.00014012,2]
[422602350,1779142239000,-150.0,0.00014064,2]
[422602347,1779142239000,-150.0,0.0001405,2]
[422602351,1779142239000,-150.0,0.00014075,2]
[422602353,1779142239000,-500.0,0.00014082,2]
[422602365,1779142239000,-25212.22911253,0.00014135,2]
[422602352,1779142239000,-500.0,0.00014081,2]
[422602363,1779142239000,-201.9544886,0.00014115,2]
[422602364,1779142239000,-150.0,0.00014121,2]
[422602354,1779142239000,-150.0,0.00014087,2]
[422602356,1779142239000,-150.0,0.0001409,2]
[422602355,1779142239000,-150.0,0.00014087,2]
[422602306,1779142239000,-150.0,0.00013862,2]
[422602371,1779142239000,-165.19,0.00014163,2]
[422602368,1779142239000,-150.0,0.00014152,2]
[422602372,1779142239000,-150.0,0.00014167,2]
[422602369,1779142239000,-150.0,0.00014159,2]
[422602366,1779142239000,-150.0,0.00014137,2]
[422602346,1779142239000,-150.0,0.00014044,2]
[422602367,1779142239000,-1129.94,0.00014149,2]
[422602373,1779142239000,-150.0,0.00014169,2]
[422602362,1779142239000,-150.0,0.00014112,2]
[422602357,1779142239000,-193.36,0.00014094,2]
[422602358,1779142239000,-150.0,0.00014106,2]
[422602359,1779142239000,-150.0,0.00014108,2]
[422602361,1779142239000,-166.66,0.0001411,2]
[422602360,1779142239000,-1000.0,0.00014109,2]
[422602344,1779142239000,-150.0,0.00014028,2]
[422602370,1779142239000,-150.0,0.00014162,2]
[422602341,1779142239000,-150.0,0.00014013,2]
[422602348,1779142239000,-150.0,0.00014056,2]
[422602305,1779142239000,-150.0,0.00013858,2]
[422602310,1779142239000,-500.0,0.00013889,2]
[422602303,1779142239000,-150.0,0.00013843,2]
[422602311,1779142239000,-150.0,0.00013889,2]
[422602314,1779142239000,-150.0,0.00013901,2]
[422602313,1779142239000,-12700.0,0.000139,5]
[422602315,1779142239000,-150.0,0.00013905,2]
[422602316,1779142239000,-2001.75,0.00013917,2]
[422602320,1779142239000,-150.0,0.00013936,2]
[422602323,1779142239000,-150.0,0.00013951,2]
[422602317,1779142239000,-150.0,0.0001392,2]
[422602319,1779142239000,-500.0,0.00013933,2]
[422602318,1779142239000,-150.0,0.00013925,2]
[422602322,1779142239000,-150.0,0.00013949,2]
[422602302,1779142239000,-166.66,0.00013836,2]
[422602321,1779142239000,-150.0,0.00013937,2]
[422602312,1779142239000,-150.0,0.00013896,2]
[422602332,1779142239000,-183.6,0.00013979,2]
[422602330,1779142239000,-183.6,0.00013979,2]
[422602329,1779142239000,-183.6,0.00013979,2]
[422602327,1779142239000,-165.19,0.00013969,2]
[422602331,1779142239000,-183.6,0.00013979,2]
[422602333,1779142239000,-150.0,0.00013982,2]
[422602337,1779142239000,-150.0,0.00013998,2]
[422602324,1779142239000,-150.0,0.00013953,2]
[422602328,1779142239000,-166.66,0.00013973,2]
[422602335,1779142239000,-34351.36849456,0.0001399,2]
[422602334,1779142239000,-150.0,0.00013987,2]
[422602325,1779142239000,-3270.9807662,0.00013962,2]
[422602338,1779142239000,-969.69792251,0.00014,2]
[422602326,1779142239000,-150.0,0.00013967,2]
[422602406,1779142240000,-500.0,0.00014287,2]
[422602417,1779142240000,-511.44,0.00014287,2]
[422602404,1779142240000,-500.0,0.00014287,2]
[422602409,1779142240000,-500.0,0.00014287,2]
[422602410,1779142240000,-500.0,0.00014287,2]
[422602411,1779142240000,-500.0,0.00014287,2]
[422602408,1779142240000,-500.0,0.00014287,2]
[422602405,1779142240000,-500.0,0.00014287,2]
[422602414,1779142240000,-500.0,0.00014287,2]
[422602415,1779142240000,-500.0,0.00014287,2]
[422602425,1779142240000,-500.0,0.00014287,2]
[422602416,1779142240000,-511.44,0.00014287,2]
[422602407,1779142240000,-500.0,0.00014287,2]
[422602424,1779142240000,-500.0,0.00014287,2]
[422602418,1779142240000,-511.44,0.00014287,2]
[422602420,1779142240000,-511.44,0.00014287,2]
[422602422,1779142240000,-500.0,0.00014287,2]
[422602421,1779142240000,-500.0,0.00014287,2]
[422602419,1779142240000,-511.44,0.00014287,2]
[422602423,1779142240000,-500.0,0.00014287,2]
[422602427,1779142240000,-500.0,0.00014287,2]
[422602429,1779142240000,-566.66,0.00014287,2]
[422602428,1779142240000,-504.19636444,0.00014287,2]
[422602440,1779142240000,-500.0,0.00014287,2]
[422602438,1779142240000,-1418.74,0.00014287,2]
[422602430,1779142240000,-566.66,0.00014287,2]
[422602401,1779142240000,-500.0,0.00014287,2]
[422602426,1779142240000,-500.0,0.00014287,2]
[422602412,1779142240000,-500.0,0.00014287,2]
[422602388,1779142240000,-166.66,0.00014247,2]
[422602402,1779142240000,-500.0,0.00014287,2]
[422602436,1779142240000,-1418.74,0.00014287,2]
[422602375,1779142240000,-150.0,0.00014179,2]
[422602376,1779142240000,-150.0,0.00014183,2]
[422602378,1779142240000,-3270.9807662,0.00014197,2]
[422602377,1779142240000,-7368.7637301,0.00014188,2]
[422602374,1779142240000,-150.0,0.00014175,2]
[422602380,1779142240000,-150.0,0.00014207,2]
[422602381,1779142240000,-2310.59015461,0.0001421,7]
[422602379,1779142240000,-150.0,0.00014198,2]
[422602382,1779142240000,-150.0,0.00014211,2]
[422602383,1779142240000,-150.0,0.00014214,2]
[422602384,1779142240000,-150.0,0.00014229,2]
[422602385,1779142240000,-150.0,0.00014237,2]
[422602413,1779142240000,-500.0,0.00014287,2]
[422602386,1779142240000,-150.0,0.00014237,2]
[422602399,1779142240000,-500.0,0.00014287,2]
[422602390,1779142240000,-150.0,0.00014247,21]
[422602391,1779142240000,-470.17,0.00014249,2]
[422602392,1779142240000,-964.18475973,0.00014249,2]
[422602389,1779142240000,-500.0,0.00014247,2]
[422602400,1779142240000,-500.0,0.00014287,2]
[422602394,1779142240000,-150.0,0.00014263,2]
[422602397,1779142240000,-3017.79422518,0.00014284,2]
[422602393,1779142240000,-150.0,0.0001426,2]
[422602398,1779142240000,-500.0,0.00014287,2]
[422602395,1779142240000,-150.0,0.00014276,2]
[422602396,1779142240000,-1027.84719135,0.00014278,2]
[422602403,1779142240000,-592.87696527,0.00014287,2]
[422602387,1779142240000,-150.0,0.00014245,2]
[422602431,1779142240000,-566.66,0.00014287,2]
[422602433,1779142240000,-566.66,0.00014287,2]
[422602432,1779142240000,-566.66,0.00014287,2]
[422602470,1779142240000,-500.0,0.00014287,2]
[422602477,1779142240000,-624.96,0.00014287,2]
[422602473,1779142240000,-500.0,0.00014287,2]
[422602472,1779142240000,-200.16128818,0.00014287,2]
[422602475,1779142240000,-500.0,0.00014287,2]
[422602478,1779142240000,-624.96,0.00014287,2]
[422602479,1779142240000,-624.96,0.00014287,2]
[422602480,1779142240000,-624.96,0.00014287,2]
[422602481,1779142240000,-167.0,0.00014287,2]
[422602482,1779142240000,-500.0,0.00014287,2]
[422602483,1779142240000,-500.0,0.00014287,2]
[422602490,1779142240000,-151.0,0.00014288,2]
[422602484,1779142240000,-516.88243336,0.00014287,2]
[422602486,1779142240000,-12398.6540177,0.00014288,2]
[422602488,1779142240000,-152.207691,0.00014288,2]
[422602489,1779142240000,-151.0,0.00014288,2]
[422602492,1779142240000,-151.0,0.00014288,2]
[422602491,1779142240000,-151.0,0.00014288,2]
[422602487,1779142240000,-616121.765036,0.00014288,2]
[422602493,1779142240000,-151.0,0.00014288,2]
[422602494,1779142240000,-221.636424,0.00014288,2]
[422602499,1779142240000,-500.0,0.00014288,2]
[422602497,1779142240000,-1365688.8013943,0.00014288,2]
[422602496,1779142240000,-151.0,0.00014288,2]
[422602498,1779142240000,-239.55702,0.00014288,2]
[422602495,1779142240000,-20585.1699367,0.00014288,2]
[422602434,1779142240000,-1418.74,0.00014287,2]
[422602471,1779142240000,-500.0,0.00014287,2]
[422602474,1779142240000,-500.0,0.00014287,2]
[422602485,1779142240000,-361376.656973,0.00014288,2]
[422602469,1779142240000,-500.0,0.00014287,2]
[422602435,1779142240000,-1418.74,0.00014287,2]
[422602476,1779142240000,-500.0,0.00014287,2]
[422602437,1779142240000,-1418.74,0.00014287,2]
[422602442,1779142240000,-500.0,0.00014287,2]
[422602452,1779142240000,-500.0,0.00014287,2]
[422602453,1779142240000,-500.0,0.00014287,2]
[422602454,1779142240000,-500.0,0.00014287,2]
[422602455,1779142240000,-500.0,0.00014287,2]
[422602448,1779142240000,-500.0,0.00014287,2]
[422602444,1779142240000,-500.0,0.00014287,2]
[422602449,1779142240000,-500.0,0.00014287,2]
[422602451,1779142240000,-500.0,0.00014287,2]
[422602446,1779142240000,-500.0,0.00014287,2]
[422602445,1779142240000,-500.0,0.00014287,2]
[422602447,1779142240000,-500.0,0.00014287,2]
[422602465,1779142240000,-500.0,0.00014287,2]
[422602466,1779142240000,-500.0,0.00014287,2]
[422602450,1779142240000,-500.0,0.00014287,2]
[422602464,1779142240000,-500.0,0.00014287,2]
[422602461,1779142240000,-500.0,0.00014287,2]
[422602467,1779142240000,-500.0,0.00014287,2]
[422602468,1779142240000,-500.0,0.00014287,2]
[422602459,1779142240000,-500.0,0.00014287,2]
[422602460,1779142240000,-500.0,0.00014287,2]
[422602463,1779142240000,-500.0,0.00014287,2]
[422602458,1779142240000,-500.0,0.00014287,2]
[422602456,1779142240000,-500.0,0.00014287,2]
[422602457,1779142240000,-500.0,0.00014287,2]
[422602462,1779142240000,-500.0,0.00014287,2]
[422602541,1779142241000,-166.66,0.00014384,2]
[422602542,1779142241000,-150.0,0.00014384,2]
[422602538,1779142241000,-150.0,0.00014362,2]
[422602540,1779142241000,-150.0,0.00014368,2]
[422602543,1779142241000,-34878.87678527,0.00014386,2]
[422602536,1779142241000,-350.0,0.00014343,2]
[422602523,1779142241000,-151.0,0.00014288,2]
[422602539,1779142241000,-150.0,0.00014366,2]
[422602535,1779142241000,-150.0,0.00014337,2]
[422602534,1779142241000,-150.0,0.00014322,2]
[422602533,1779142241000,-150.0,0.00014315,2]
[422602545,1779142241000,-150.0,0.00014387,2]
[422602537,1779142241000,-150.0,0.00014353,2]
[422602544,1779142241000,-150.0,0.00014387,2]
[422602559,1779142241000,-150.0,0.00014462,2]
[422602547,1779142241000,-150.0,0.00014399,2]
[422602558,1779142241000,-150.0,0.00014461,2]
[422602546,1779142241000,-165.19,0.00014388,2]
[422602548,1779142241000,-150.0,0.0001441,2]
[422602549,1779142241000,-500.0,0.00014411,2]
[422602556,1779142241000,-150.0,0.00014446,2]
[422602555,1779142241000,-150.0,0.00014441,2]
[422602552,1779142241000,-150.0,0.00014424,2]
[422602550,1779142241000,-150.0,0.00014415,2]
[422602554,1779142241000,-3270.9807662,0.00014431,2]
[422602551,1779142241000,-150.0,0.00014418,2]
[422602553,1779142241000,-150.0,0.0001443,2]
[422602524,1779142241000,-151.0,0.00014288,2]
[422602557,1779142241000,-250.0,0.00014448,2]
[422602522,1779142241000,-151.0,0.00014288,2]
[422602500,1779142241000,-500.0,0.00014288,2]
[422602520,1779142241000,-151.0,0.00014288,2]
[422602560,1779142241000,-150.0,0.0001447,2]
[422602502,1779142241000,-151.0,0.00014288,2]
[422602501,1779142241000,-198.727669,0.00014288,2]
[422602503,1779142241000,-167.0,0.00014288,2]
[422602504,1779142241000,-172.97403995,0.00014288,2]
[422602505,1779142241000,-379.841445,0.00014288,2]
[422602506,1779142241000,-379.841445,0.00014288,2]
[422602508,1779142241000,-379.841445,0.00014288,2]
[422602509,1779142241000,-379.841445,0.00014288,2]
[422602507,1779142241000,-379.841445,0.00014288,2]
[422602510,1779142241000,-379.841445,0.00014288,2]
[422602513,1779142241000,-379.841445,0.00014288,2]
[422602516,1779142241000,-379.841445,0.00014288,2]
[422602521,1779142241000,-151.0,0.00014288,2]
[422602511,1779142241000,-379.841445,0.00014288,2]
[422602514,1779142241000,-379.841445,0.00014288,2]
[422602512,1779142241000,-379.841445,0.00014288,2]
[422602518,1779142241000,-151.0,0.00014288,2]
[422602517,1779142241000,-151.0,0.00014288,2]
[422602519,1779142241000,-151.0,0.00014288,2]
[422602525,1779142241000,-151.0,0.00014288,2]
[422602526,1779142241000,-150.0,0.00014291,2]
[422602527,1779142241000,-500.0,0.00014294,2]
[422602528,1779142241000,-150.0,0.00014295,2]
[422602529,1779142241000,-150.0,0.00014299,2]
[422602530,1779142241000,-150.0,0.00014305,2]
[422602532,1779142241000,-150.0,0.00014312,2]
[422602531,1779142241000,-150.0,0.00014307,2]
[422602515,1779142241000,-379.841445,0.00014288,2]
[422602570,1779142241000,-150.0,0.00014521,2]
[422602579,1779142241000,-34878.87678527,0.00014558,2]
[422602564,1779142241000,-150.0,0.00014487,2]
[422602596,1779142241000,-150.0,0.00014646,2]
[422602607,1779142241000,-150.0,0.00014708,2]
[422602608,1779142241000,-150.0,0.00014714,2]
[422602604,1779142241000,-150.0,0.00014693,2]
[422602606,1779142241000,-2500.0,0.000147,5]
[422602603,1779142241000,-150.0,0.00014687,2]
[422602599,1779142241000,-150.0,0.00014674,2]
[422602600,1779142241000,-150.0,0.00014676,2]
[422602601,1779142241000,-150.0,0.00014677,2]
[422602605,1779142241000,-470.17833181,0.00014698,2]
[422602598,1779142241000,-3270.9807662,0.00014666,2]
[422602602,1779142241000,-150.0,0.00014687,2]
[422602609,1779142241000,-150.0,0.00014724,2]
[422602597,1779142241000,-150.0,0.00014662,2]
[422602612,1779142241000,-150.0,0.00014737,2]
[422602616,1779142241000,-150.0,0.00014756,2]
[422602614,1779142241000,-159.0,0.00014747,2]
[422602610,1779142241000,-150.0,0.00014728,2]
[422602620,1779142241000,-587.0,0.00014785,2]
[422602618,1779142241000,-150.0,0.0001477,2]
[422602615,1779142241000,-150.0,0.00014755,2]
[422602617,1779142241000,-150.0,0.00014762,2]
[422602613,1779142241000,-150.0,0.00014739,2]
[422602619,1779142241000,-150.0,0.0001478,2]
[422602622,1779142241000,-350.0,0.00014799,2]
[422602621,1779142241000,-150.0,0.00014785,2]
[422602623,1779142241000,-150.0,0.00014799,2]
[422602561,1779142241000,-470.17,0.00014472,2]
[422602611,1779142241000,-34878.87678527,0.00014729,2]
[422602589,1779142241000,-150.0,0.00014612,2]
[422602625,1779142241000,-150.0,0.00014801,2]
[422602593,1779142241000,-150.0,0.00014631,2]
[422602568,1779142241000,-2500.0,0.000145,5]
[422602566,1779142241000,-1100.48,0.00014497,2]
[422602565,1779142241000,-150.0,0.00014492,2]
[422602562,1779142241000,-150.0,0.00014476,2]
[422602563,1779142241000,-168.56276235,0.00014481,2]
[422602569,1779142241000,-150.0,0.00014507,2]
[422602567,1779142241000,-1583.05,0.00014497,2]
[422602572,1779142241000,-150.0,0.00014525,2]
[422602594,1779142241000,-150.0,0.0001464,2]
[422602583,1779142241000,-150.0,0.00014573,2]
[422602573,1779142241000,-150.0,0.00014537,2]
[422602571,1779142241000,-150.0,0.00014523,2]
[422602575,1779142241000,-7368.76373008,0.00014544,2]
[422602574,1779142241000,-150.0,0.00014538,2]
[422602582,1779142241000,-150.0,0.00014569,2]
[422602578,1779142241000,-150.0,0.00014554,2]
[422602592,1779142241000,-150.0,0.00014625,2]
[422602624,1779142241000,-2500.0,0.000148,5]
[422602591,1779142241000,-150.0,0.00014616,2]
[422602590,1779142241000,-150.0,0.00014612,2]
[422602586,1779142241000,-1258.57,0.000146,2]
[422602587,1779142241000,-2500.0,0.000146,5]
[422602588,1779142241000,-150.0,0.000146,2]
[422602595,1779142241000,-162.86,0.00014643,2]
[422602584,1779142241000,-150.0,0.00014578,2]
[422602581,1779142241000,-500.0,0.00014568,2]
[422602576,1779142241000,-150.0,0.00014549,2]
[422602580,1779142241000,-433.0,0.00014558,2]
[422602577,1779142241000,-1000.0,0.00014554,2]
[422602585,1779142241000,-150.0,0.00014585,2]
[422602666,1779142242000,-150.0,0.00014911,2]
[422602667,1779142242000,-150.0,0.00014924,2]
[422602669,1779142242000,-154.3164136,0.00014925,2]
[422602668,1779142242000,-150.0,0.00014925,2]
[422602663,1779142242000,-3270.9807662,0.000149,2]
[422602660,1779142242000,-172.86314934,0.000149,2]
[422602662,1779142242000,-172.86314933,0.000149,2]
[422602664,1779142242000,-290.88615179,0.00014908,2]
[422602661,1779142242000,-7368.76373008,0.000149,2]
[422602659,1779142242000,-539.44477484,0.000149,2]
[422602670,1779142242000,-150.0,0.00014935,2]
[422602665,1779142242000,-150.0,0.00014909,2]
[422602672,1779142242000,-150.0,0.00014955,2]
[422602696,1779142242000,-500.0,0.00014998,2]
[422602671,1779142242000,-150.0,0.0001494,2]
[422602675,1779142242000,-150.0,0.00014986,2]
[422602674,1779142242000,-604.94776535,0.00014983,2]
[422602677,1779142242000,-150.0,0.00014986,2]
[422602676,1779142242000,-150.0,0.00014986,2]
[422602680,1779142242000,-257.99941028,0.00014986,2]
[422602679,1779142242000,-151.33807361,0.00014986,2]
[422602678,1779142242000,-150.0,0.00014986,2]
[422602681,1779142242000,-150.0,0.00014986,2]
[422602683,1779142242000,-1027.84719135,0.0001499,2]
[422602694,1779142242000,-566.66,0.00014998,2]
[422602682,1779142242000,-322.0,0.00014987,2]
[422602649,1779142242000,-500.0,0.00014899,2]
[422602673,1779142242000,-150.0,0.00014971,2]
[422602655,1779142242000,-964.18475973,0.000149,2]
[422602646,1779142242000,-500.0,0.00014899,2]
[422602650,1779142242000,-500.0,0.00014899,2]
[422602686,1779142242000,-500.0,0.00014998,2]
[422602633,1779142242000,-500.0,0.00014842,2]
[422602632,1779142242000,-150.0,0.00014836,2]
[422602628,1779142242000,-150.0,0.00014816,2]
[422602627,1779142242000,-165.19,0.00014808,2]
[422602631,1779142242000,-150.0,0.00014832,2]
[422602630,1779142242000,-150.0,0.00014831,2]
[422602626,1779142242000,-180.41442309,0.00014805,2]
[422602629,1779142242000,-500.0,0.00014822,2]
[422602637,1779142242000,-151.0,0.00014857,2]
[422602638,1779142242000,-151.0,0.00014857,2]
[422602640,1779142242000,-150.0,0.00014863,2]
[422602642,1779142242000,-322.0,0.00014873,2]
[422602653,1779142242000,-10000.0,0.000149,2]
[422602636,1779142242000,-2351.0,0.00014853,2]
[422602644,1779142242000,-150.0,0.00014883,2]
[422602635,1779142242000,-150.0,0.0001485,2]
[422602643,1779142242000,-150.0,0.00014878,2]
[422602641,1779142242000,-150.0,0.00014871,2]
[422602645,1779142242000,-150.0,0.00014894,2]
[422602648,1779142242000,-553.1,0.00014899,2]
[422602652,1779142242000,-7953.2944343,0.000149,2]
[422602658,1779142242000,-2913.0,0.000149,5]
[422602656,1779142242000,-3463.37509711,0.000149,3]
[422602647,1779142242000,-500.0,0.00014899,2]
[422602651,1779142242000,-500.0,0.00014899,2]
[422602654,1779142242000,-2258.8871,0.000149,2]
[422602657,1779142242000,-34878.87678527,0.000149,2]
[422602639,1779142242000,-150.0,0.00014861,2]
[422602684,1779142242000,-152.0,0.00014995,2]
[422602634,1779142242000,-150.0,0.00014847,2]
[422602693,1779142242000,-500.0,0.00014998,2]
[422602725,1779142242000,-511.44,0.00014999,2]
[422602732,1779142242000,-511.47660207,0.00014999,2]
[422602729,1779142242000,-511.44,0.00014999,2]
[422602727,1779142242000,-511.44,0.00014999,2]
[422602733,1779142242000,-500.0,0.00014999,2]
[422602730,1779142242000,-511.44,0.00014999,2]
[422602735,1779142242000,-566.66,0.00014999,2]
[422602734,1779142242000,-534.8114487,0.00014999,2]
[422602738,1779142242000,-566.66,0.00014999,2]
[422602736,1779142242000,-566.66,0.00014999,2]
[422602737,1779142242000,-566.66,0.00014999,2]
[422602740,1779142242000,-566.66,0.00014999,2]
[422602750,1779142242000,-1418.74,0.00014999,2]
[422602731,1779142242000,-511.44,0.00014999,2]
[422602752,1779142242000,-1418.74,0.00014999,2]
[422602739,1779142242000,-566.66,0.00014999,2]
[422602742,1779142242000,-566.66,0.00014999,2]
[422602741,1779142242000,-566.66,0.00014999,2]
[422602743,1779142242000,-566.66,0.00014999,2]
[422602744,1779142242000,-566.66,0.00014999,2]
[422602747,1779142242000,-679.28058716,0.00014999,2]
[422602745,1779142242000,-566.66,0.00014999,2]
[422602748,1779142242000,-385.11573104,0.00014999,2]
[422602749,1779142242000,-1418.74,0.00014999,2]
[422602753,1779142242000,-1418.74,0.00014999,2]
[422602754,1779142242000,-1418.74,0.00014999,2]
[422602755,1779142242000,-1418.74,0.00014999,2]
[422602695,1779142242000,-1418.74,0.00014998,2]
[422602746,1779142242000,-566.85260606,0.00014999,2]
[422602724,1779142242000,-511.44,0.00014999,2]
[422602751,1779142242000,-1418.74,0.00014999,2]
[422602715,1779142242000,-500.0,0.00014999,2]
[422602714,1779142242000,-500.0,0.00014999,2]
[422602687,1779142242000,-500.0,0.00014998,2]
[422602688,1779142242000,-500.0,0.00014998,2]
[422602691,1779142242000,-511.44,0.00014998,2]
[422602689,1779142242000,-453.1992022,0.00014998,2]
[422602699,1779142242000,-624.96,0.00014998,2]
[422602697,1779142242000,-500.0,0.00014998,2]
[422602708,1779142242000,-500.0,0.00014999,2]
[422602702,1779142242000,-500.0,0.00014999,2]
[422602706,1779142242000,-500.0,0.00014999,2]
[422602700,1779142242000,-500.0,0.00014999,2]
[422602703,1779142242000,-500.0,0.00014999,2]
[422602707,1779142242000,-500.0,0.00014999,2]
[422602705,1779142242000,-500.0,0.00014999,2]
[422602701,1779142242000,-500.0,0.00014999,2]
[422602709,1779142242000,-500.0,0.00014999,2]
[422602710,1779142242000,-500.0,0.00014999,2]
[422602712,1779142242000,-500.0,0.00014999,2]
[422602713,1779142242000,-500.0,0.00014999,2]
[422602718,1779142242000,-508.6161554,0.00014999,2]
[422602720,1779142242000,-511.44,0.00014999,2]
[422602716,1779142242000,-500.0,0.00014999,2]
[422602717,1779142242000,-500.0,0.00014999,2]
[422602685,1779142242000,-151.0,0.00014997,2]
[422602723,1779142242000,-511.44,0.00014999,2]
[422602722,1779142242000,-511.44,0.00014999,2]
[422602721,1779142242000,-511.44,0.00014999,2]
[422602711,1779142242000,-500.0,0.00014999,2]
[422602704,1779142242000,-500.0,0.00014999,2]
[422602719,1779142242000,-511.44,0.00014999,2]
[422602771,1779142243000,-500.0,0.00014999,2]
[422602774,1779142243000,-500.0,0.00014999,2]
[422602776,1779142243000,-500.0,0.00014999,2]
[422602769,1779142243000,-500.0,0.00014999,2]
[422602770,1779142243000,-500.0,0.00014999,2]
[422602773,1779142243000,-500.0,0.00014999,2]
[422602777,1779142243000,-624.96,0.00014999,2]
[422602784,1779142243000,-624.96,0.00014999,2]
[422602781,1779142243000,-624.96,0.00014999,2]
[422602785,1779142243000,-624.96,0.00014999,2]
[422602783,1779142243000,-624.96,0.00014999,2]
[422602786,1779142243000,-624.96,0.00014999,2]
[422602792,1779142243000,-300.0,0.00014999,2]
[422602772,1779142243000,-500.0,0.00014999,2]
[422602782,1779142243000,-624.96,0.00014999,2]
[422602757,1779142243000,-1418.74,0.00014999,2]
[422602778,1779142243000,-624.96,0.00014999,2]
[422602789,1779142243000,-625.02,0.00014999,2]
[422602765,1779142243000,-500.0,0.00014999,2]
[422602756,1779142243000,-1418.74,0.00014999,2]
[422602759,1779142243000,-1418.74,0.00014999,2]
[422602762,1779142243000,-500.0,0.00014999,2]
[422602764,1779142243000,-500.0,0.00014999,2]
[422602775,1779142243000,-500.0,0.00014999,2]
[422602758,1779142243000,-1418.74,0.00014999,2]
[422602763,1779142243000,-500.0,0.00014999,2]
[422602760,1779142243000,-1418.84,0.00014999,2]
[422602761,1779142243000,-500.0,0.00014999,2]
[422602768,1779142243000,-500.0,0.00014999,2]
[422602779,1779142243000,-624.96,0.00014999,2]
[422602767,1779142243000,-500.0,0.00014999,2]
[422602766,1779142243000,-500.0,0.00014999,2]
[422602790,1779142243000,-300.0,0.00014999,2]
[422602780,1779142243000,-624.96,0.00014999,2]
[422602791,1779142243000,-300.0,0.00014999,2]
[422602813,1779142243000,-151.0,0.00015,2]
[422602810,1779142243000,-151.0,0.00015,2]
[422602811,1779142243000,-200.0,0.00015,2]
[422602815,1779142243000,-1373.25000103,0.00015,2]
[422602816,1779142243000,-1222.69478,0.00015,2]
[422602818,1779142243000,-735744.40358388,0.00015,2]
[422602812,1779142243000,-151.0,0.00015,2]
[422602817,1779142243000,-904.1372,0.00015,2]
[422602820,1779142243000,-393.34307301,0.00015,2]
[422602821,1779142243000,-7760.00000001,0.0001439,2]
[422602823,1779142243000,-276.79208704,0.0001439,2]
[422602822,1779142243000,-257.33328093,0.0001439,2]
[422602824,1779142243000,-500.0,0.0001439,2]
[422602788,1779142243000,-624.96,0.00014999,2]
[422602819,1779142243000,-1128.37587025,0.00015,2]
[422602809,1779142243000,-151.0,0.00015,2]
[422602814,1779142243000,-6287303.55077866,0.00015,2]
[422602803,1779142243000,-1000.0,0.00015,2]
[422602787,1779142243000,-624.96,0.00014999,2]
[422602797,1779142243000,-10153577.55125829,0.00015,2]
[422602807,1779142243000,-200.0,0.00015,2]